fUSD/lending_fUSD_20260405
["ID","MTS","AMOUNT","RATE_DAILY","PERIOD"]
[419835329,1775407839719,-250.0,0.00010545,2]
[419835331,1775407839728,-255.0,0.00010545,2]
[419835333,1775407839737,-200.0,0.00010548,2]
[419835335,1775407839747,-1487.5751963,0.00010548,2]
[419835337,1775407839756,-280.17407569,0.00010548,2]
[419835340,1775407839765,-518.71,0.00010693,2]
[419835342,1775407839774,-333.32071224,0.00010726,2]
[419835345,1775407839783,-182.89801186,0.00010765,2]
[419835348,1775407839792,-500.0,0.00010765,2]
[419835351,1775407839801,-421.64150284,0.00010765,2]
[419835353,1775407839811,-2000.0,0.00010765,2]
[419835354,1775407839819,-1852.42,0.00010766,2]
[419835357,1775407839829,-4293.65708408,0.000109,2]
[419835361,1775407839839,-4293.65708406,0.000109,2]
[419835364,1775407839848,-10891.57,0.00010926,2]
[419835366,1775407839857,-500.0,0.00010959,2]
[419835368,1775407839866,-387.75,0.00010985,2]
[419835370,1775407839875,-200.0,0.00011096,2]
[419835372,1775407839884,-7015.56153488,0.00011099,2]
[419835374,1775407839893,-7015.56153483,0.00011099,2]
[419835376,1775407839902,-7794.24996151,0.00011099,2]
[419835378,1775407839912,-7794.24996149,0.00011099,2]
[419835380,1775407839921,-7015.56153483,0.00011233,2]
[419835382,1775407839930,-7794.24996149,0.00011233,2]
[419835384,1775407839940,-150.99,0.00011281,2]
[419835385,1775407839949,-7124.75,0.00011281,2]
[419835386,1775407839959,-518.71,0.00011287,2]
[419835388,1775407839968,-169.0427,0.000113,2]
[419835389,1775407839977,-1500.0,0.00011466,2]
[419835390,1775407839987,-587.0,0.00011478,2]
[419835391,1775407839996,-2351.0,0.00011478,2]
[419835392,1775407840006,-2940.81,0.00011485,2]
[419835393,1775407840015,-198.63,0.00011593,2]
[419835394,1775407840024,-433.0,0.00011599,2]
[419835395,1775407840033,-4293.65708406,0.00011614,2]
[419835396,1775407840043,-165.53,0.0001164,2]
[419835397,1775407840052,-200.0,0.00011644,2]
[419835398,1775407840061,-1123.82740905,0.00011688,2]
[419835399,1775407840071,-275.87,0.0001173,2]
[419835400,1775407840080,-500.0,0.00011782,2]
[419835401,1775407840089,-518.71,0.00011881,2]
[419835402,1775407840099,-1000.0,0.00011888,2]
[419835403,1775407840108,-7015.56153483,0.000119,2]
[419835404,1775407840118,-7794.24996149,0.000119,2]
[419835405,1775407840127,-219.62,0.00011964,2]
[419835406,1775407840136,-2000.0,0.00012111,2]
[419835407,1775407840145,-200.0,0.00012192,2]
[419835408,1775407840155,-1123.827409,0.0001239,2]
[419835409,1775407840164,-4293.65708406,0.00012471,2]
[419835410,1775407840173,-518.71,0.00012475,2]
[419835411,1775407840182,-250.0,0.00012534,2]
[419835412,1775407840191,-7015.56153483,0.00012567,2]
[419835413,1775407840202,-7794.24996149,0.00012567,2]
[419835414,1775407840211,-500.0,0.00012603,2]
[419835415,1775407840220,-3292.0,0.00012626,2]
[419835416,1775407840229,-823.0,0.00012626,2]
[419835417,1775407840239,-190.5029,0.000127,2]
[419835418,1775407840248,-200.0,0.0001274,2]
[419835419,1775407840258,-736.0,0.00012759,2]
[419835420,1775407840268,-160.0,0.00012816,2]
[419835421,1775407840278,-250.0,0.00013,2]
[419835422,1775407840287,-518.71,0.00013069,2]
[419835423,1775407840297,-1123.827409,0.00013092,2]
[419835424,1775407840306,-504.0,0.00013111,2]
[419835425,1775407840316,-503.0,0.00013111,2]
[419835426,1775407840326,-503.0,0.00013111,2]
[419835427,1775407840337,-503.0,0.00013111,2]
[419835428,1775407840347,-1007.13,0.00013151,2]
[419835429,1775407840356,-7015.56153483,0.00013233,2]
[419835430,1775407840366,-7794.24996149,0.00013233,2]
[419835431,1775407840377,-200.0,0.00013288,2]
[419835432,1775407840388,-4293.65708406,0.00013329,2]
[419835433,1775407840399,-11692.610159,0.00013426,2]
[419835434,1775407840409,-2000.0,0.00013456,2]
[419835435,1775407840418,-518.71,0.00013663,2]
[419835436,1775407840427,-500.0,0.00013673,2]
[419835437,1775407840436,-500.0,0.00013673,2]
[419835438,1775407840447,-500.0,0.00013673,2]
[419835439,1775407840456,-500.0,0.00013673,2]
[419835440,1775407840465,-500.0,0.00013673,2]
[419835441,1775407840474,-500.0,0.00013698,2]
[419835442,1775407840485,-500.0,0.00013698,2]
[419835443,1775407840494,-500.0,0.00013698,2]
[419835444,1775407840504,-500.0,0.00013698,2]
[419835445,1775407840513,-500.0,0.00013698,2]
[419835446,1775407840522,-500.0,0.00013698,2]
[419835447,1775407840531,-500.0,0.00013698,2]
[419835448,1775407840542,-500.0,0.00013698,2]
[419835449,1775407840551,-500.0,0.00013698,2]
[419835450,1775407840560,-500.0,0.00013698,2]
[419835451,1775407840568,-242.28978926,0.00013698,2]
[419835452,1775407840578,-500.0,0.00013698,2]
[419835453,1775407840587,-500.0,0.00013698,2]
[419835454,1775407840597,-500.0,0.00013698,2]
[419835455,1775407840608,-500.0,0.00013698,2]
[419835456,1775407840618,-500.0,0.00013698,2]
[419835457,1775407840628,-500.0,0.00013698,2]
[419835458,1775407840638,-500.0,0.00013698,2]
[419835459,1775407840647,-500.0,0.00013698,2]
[419835460,1775407840656,-346.23278756,0.00013698,2]
[419835461,1775407840665,-500.0,0.00013698,2]
[419835462,1775407840674,-500.0,0.00013698,2]
[419835463,1775407840683,-500.0,0.00013698,2]
[419835464,1775407840692,-500.0,0.00013698,2]
[419835465,1775407840701,-500.0,0.00013698,2]
[419835466,1775407840710,-500.0,0.00013698,2]
[419835467,1775407840720,-500.0,0.00013698,2]
[419835468,1775407840730,-223.40397972,0.00013698,2]
[419835469,1775407840739,-500.0,0.00013698,2]
[419835470,1775407840748,-556.80166937,0.00013698,2]
[419835471,1775407840758,-385.93623428,0.00013698,2]
[419835472,1775407840767,-500.0,0.00013698,2]
[419835473,1775407840776,-500.0,0.00013698,2]
[419835474,1775407840785,-500.0,0.00013698,2]
[419835475,1775407840795,-500.0,0.00013698,2]
[419835476,1775407840805,-500.0,0.00013698,2]
[419835477,1775407840815,-500.0,0.00013698,2]
[419835478,1775407840824,-285.16849402,0.00013698,2]
[419835479,1775407840833,-569.46,0.00013698,2]
[419835480,1775407840843,-569.46,0.00013698,2]
[419835481,1775407840852,-569.46,0.00013698,2]
[419835482,1775407840862,-569.46,0.00013698,2]
[419835483,1775407840871,-569.46,0.00013698,2]
[419835484,1775407840882,-569.46,0.00013698,2]
[419835485,1775407840892,-569.46,0.00013698,2]
[419835486,1775407840901,-569.46,0.00013698,2]
[419835487,1775407840911,-569.46,0.00013698,2]
[419835488,1775407840920,-569.46,0.00013698,2]
[419835489,1775407840931,-569.46,0.00013698,2]
[419835490,1775407840940,-569.46,0.00013698,2]
[419835491,1775407840949,-569.46,0.00013698,2]
[419835492,1775407840958,-569.46,0.00013698,2]
[419835493,1775407840967,-500.0,0.00013698,2]
[419835494,1775407840976,-500.0,0.00013698,2]
[419835495,1775407840986,-500.0,0.00013698,2]
[419835496,1775407840997,-500.0,0.00013698,2]
[419835497,1775407841006,-500.0,0.00013698,2]
[419835498,1775407841016,-500.0,0.00013698,2]
[419835499,1775407841025,-500.0,0.00013698,2]
[419835500,1775407841034,-500.0,0.00013698,2]
[419835501,1775407841043,-500.0,0.00013698,2]
[419835502,1775407841054,-500.0,0.00013698,2]
[419835503,1775407841063,-500.0,0.00013698,2]
[419835504,1775407841072,-500.0,0.00013698,2]
[419835505,1775407841082,-513.8,0.00013698,2]
[419835506,1775407841091,-500.0,0.00013698,2]
[419835507,1775407841101,-513.8,0.00013698,2]
[419835508,1775407841111,-500.0,0.00013698,2]
[419835509,1775407841120,-513.8,0.00013698,2]
[419835510,1775407841130,-513.8,0.00013698,2]
[419835512,1775407841145,-513.8,0.00013698,2]
[419835513,1775407841167,-513.8,0.00013698,2]
[419835514,1775407841183,-513.8,0.00013698,2]
[419835515,1775407841192,-513.8,0.00013698,2]
[419835516,1775407841201,-513.8,0.00013698,2]
[419835517,1775407841211,-513.8,0.00013698,2]
[419835518,1775407841220,-513.8,0.00013698,2]
[419835519,1775407841229,-513.8,0.00013698,2]
[419835520,1775407841238,-513.8,0.00013698,2]
[419835521,1775407841248,-513.8,0.00013698,2]
[419835522,1775407841257,-500.0,0.00013698,2]
[419835523,1775407841266,-500.0,0.00013698,2]
[419835524,1775407841276,-500.0,0.00013698,2]
[419835525,1775407841285,-500.0,0.00013698,2]
[419835526,1775407841294,-500.0,0.00013698,2]
[419835527,1775407841303,-500.0,0.00013698,2]
[419835528,1775407841312,-500.0,0.00013698,2]
[419835529,1775407841321,-500.0,0.00013698,2]
[419835530,1775407841331,-500.0,0.00013698,2]
[419835531,1775407841340,-500.0,0.00013698,2]
[419835532,1775407841350,-500.0,0.00013698,2]
[419835533,1775407841360,-500.0,0.00013698,2]
[419835534,1775407841373,-500.0,0.00013698,2]
[419835535,1775407841384,-500.0,0.00013698,2]
[419835536,1775407841393,-500.0,0.00013698,2]
[419835537,1775407841402,-500.0,0.00013698,2]
[419835538,1775407841413,-500.0,0.00013698,2]
[419835539,1775407841423,-500.0,0.00013698,2]
[419835540,1775407841434,-500.0,0.00013698,2]
[419835541,1775407841444,-500.0,0.00013698,2]
[419835543,1775407841454,-500.0,0.00013698,2]
[419835544,1775407841463,-500.0,0.00013698,2]
[419835545,1775407841473,-500.0,0.00013698,2]
[419835546,1775407841482,-500.0,0.00013698,2]
[419835547,1775407841491,-500.0,0.00013698,2]
[419835548,1775407841503,-500.0,0.00013698,2]
[419835549,1775407841513,-533.94,0.00013698,2]
[419835550,1775407841522,-500.0,0.00013698,2]
[419835551,1775407841532,-500.0,0.00013698,2]
[419835552,1775407841541,-500.0,0.00013698,2]
[419835553,1775407841551,-500.0,0.00013698,2]
[419835554,1775407841560,-500.0,0.00013698,2]
[419835555,1775407841570,-500.0,0.00013698,2]
[419835556,1775407841580,-500.0,0.00013698,2]
[419835557,1775407841594,-601.55745143,0.00013698,2]
[419835558,1775407841604,-966.9,0.00013698,2]
[419835559,1775407841613,-500.0,0.00013698,2]
[419835560,1775407841623,-500.0,0.00013698,2]
[419835561,1775407841632,-500.0,0.00013698,2]
[419835562,1775407841641,-500.0,0.00013698,2]
[419835563,1775407841651,-500.0,0.00013698,2]
[419835564,1775407841660,-469.24,0.00013698,2]
[419835565,1775407841669,-1353.7,0.00013698,2]
[419835566,1775407841678,-1353.7,0.00013698,2]
[419835567,1775407841687,-1353.7,0.00013698,2]
[419835568,1775407841696,-1353.7,0.00013698,2]
[419835569,1775407841708,-1353.7,0.00013698,2]
[419835570,1775407841717,-1353.7,0.00013698,2]
[419835571,1775407841727,-1353.7,0.00013698,2]
[419835572,1775407841737,-1353.7,0.00013698,2]
[419835573,1775407841747,-1353.7,0.00013698,2]
[419835574,1775407841756,-1353.7,0.00013698,2]
[419835575,1775407841766,-1353.7,0.00013698,2]
[419835576,1775407841778,-1353.7,0.00013698,2]
[419835577,1775407841788,-1353.7,0.00013698,2]
[419835578,1775407841797,-1353.7,0.00013698,2]
[419835579,1775407841807,-500.0,0.00013698,2]
[419835580,1775407841817,-500.0,0.00013698,2]
[419835581,1775407841826,-527.89052605,0.00013698,2]
[419835582,1775407841836,-571.23,0.00013698,2]
[419835583,1775407841846,-571.23,0.00013698,2]
[419835584,1775407841856,-571.23,0.00013698,2]
[419835585,1775407841866,-571.23,0.00013698,2]
[419835586,1775407841876,-571.23,0.00013698,2]
[419835587,1775407841887,-571.23,0.00013698,2]
[419835588,1775407841896,-571.23,0.00013698,2]
[419835589,1775407841908,-571.23,0.00013698,2]
[419835590,1775407841917,-571.23,0.00013698,2]
[419835591,1775407841927,-571.23,0.00013698,2]
[419835592,1775407841939,-571.23,0.00013698,2]
[419835593,1775407841949,-571.23,0.00013698,2]
[419835594,1775407841959,-571.23,0.00013698,2]
[419835595,1775407841970,-571.23,0.00013698,2]
[419835596,1775407841981,-500.0,0.00013698,2]
[419835597,1775407841992,-500.0,0.00013698,2]
[419835598,1775407842002,-500.0,0.00013698,2]
[419835599,1775407842011,-500.0,0.00013698,2]
[419835600,1775407842021,-500.0,0.00013698,2]
[419835601,1775407842030,-500.0,0.00013698,2]
[419835602,1775407842039,-500.0,0.00013698,2]
[419835603,1775407842049,-500.0,0.00013698,2]
[419835604,1775407842058,-500.0,0.00013698,2]
[419835605,1775407842068,-500.0,0.00013698,2]
[419835606,1775407842078,-500.0,0.00013698,2]
[419835607,1775407842087,-500.0,0.00013698,2]
[419835608,1775407842097,-500.0,0.00013698,2]
[419835609,1775407842428,-500.0,0.00013698,2]
[419835610,1775407842438,-500.0,0.00013698,2]
[419835611,1775407842447,-500.0,0.00013698,2]
[419835612,1775407842457,-500.0,0.00013698,2]
[419835613,1775407842467,-477.62,0.00013698,2]
[419835614,1775407842478,-500.0,0.00013698,2]
[419835615,1775407842488,-500.0,0.00013698,2]
[419835616,1775407842497,-500.0,0.00013698,2]
[419835617,1775407842507,-500.0,0.00013698,2]
[419835618,1775407842516,-500.0,0.00013698,2]
[419835619,1775407842526,-500.0,0.00013698,2]
[419835620,1775407842536,-500.0,0.00013698,2]
[419835621,1775407842545,-500.0,0.00013698,2]
[419835622,1775407842555,-500.0,0.00013698,2]
[419835623,1775407842565,-500.0,0.00013698,2]
[419835624,1775407842574,-500.0,0.00013698,2]
[419835625,1775407842583,-500.0,0.00013698,2]
[419835626,1775407842593,-500.0,0.00013698,2]
[419835627,1775407842602,-500.0,0.00013698,2]
[419835628,1775407842611,-500.0,0.00013698,2]
[419835629,1775407842621,-500.0,0.00013698,2]
[419835630,1775407842633,-500.0,0.00013698,2]
[419835631,1775407842643,-277.02,0.00013698,2]
[419835632,1775407842653,-500.0,0.00013698,2]
[419835633,1775407842663,-500.0,0.00013698,2]
[419835634,1775407842672,-500.0,0.00013698,2]
[419835635,1775407842681,-500.0,0.00013698,2]
[419835636,1775407842691,-500.0,0.00013698,2]
[419835637,1775407842700,-500.0,0.00013698,2]
[419835638,1775407842710,-500.0,0.00013698,2]
[419835639,1775407842719,-500.0,0.00013698,2]
[419835640,1775407842729,-500.0,0.00013698,2]
[419835641,1775407842739,-500.0,0.00013698,2]
[419835642,1775407842749,-500.0,0.00013698,2]
[419835643,1775407842760,-632.4,0.00013698,2]
[419835644,1775407842770,-500.0,0.00013698,2]
[419835645,1775407842780,-500.0,0.00013698,2]
[419835646,1775407842790,-500.0,0.00013698,2]
[419835647,1775407842801,-500.0,0.00013698,2]
[419835648,1775407842811,-500.0,0.00013698,2]
[419835650,1775407842821,-500.0,0.00013698,2]
[419835652,1775407842830,-500.0,0.00013698,2]
[419835654,1775407842839,-500.0,0.00013698,2]
[419835655,1775407842848,-500.0,0.00013698,2]
[419835656,1775407842858,-500.0,0.00013698,2]
[419835657,1775407842867,-500.0,0.00013698,2]
[419835658,1775407842876,-500.0,0.00013698,2]
[419835659,1775407842886,-500.0,0.00013698,2]
[419835660,1775407842896,-500.0,0.00013698,2]
[419835661,1775407842906,-500.0,0.00013698,2]
[419835662,1775407842916,-500.0,0.00013698,2]
[419835663,1775407842925,-500.0,0.00013698,2]
[419835664,1775407842934,-500.0,0.00013698,2]
[419835665,1775407842944,-500.0,0.00013698,2]
[419835666,1775407842953,-500.0,0.00013698,2]
[419835667,1775407842963,-500.0,0.00013698,2]
[419835668,1775407842972,-500.0,0.00013698,2]
[419835669,1775407842982,-500.0,0.00013698,2]
[419835670,1775407842991,-500.0,0.00013698,2]
[419835671,1775407843001,-500.0,0.00013698,2]
[419835672,1775407843010,-500.0,0.00013698,2]
[419835673,1775407843020,-500.0,0.00013698,2]
[419835674,1775407843030,-500.0,0.00013698,2]
[419835675,1775407843040,-500.0,0.00013698,2]
[419835676,1775407843050,-520.65331997,0.00013698,2]
[419835677,1775407843060,-500.0,0.00013698,2]
[419835678,1775407843070,-500.0,0.00013698,2]
[419835679,1775407843080,-500.0,0.00013698,2]
[419835680,1775407843090,-500.0,0.00013698,2]
[419835681,1775407843102,-500.0,0.00013698,2]
[419835682,1775407843112,-500.0,0.00013698,2]
[419835683,1775407843122,-500.0,0.00013698,2]
[419835684,1775407843132,-500.0,0.00013698,2]
[419835685,1775407843141,-500.0,0.00013698,2]
[419835686,1775407843151,-500.0,0.00013698,2]
[419835687,1775407843162,-500.0,0.00013698,2]
[419835688,1775407843171,-500.0,0.00013698,2]
[419835689,1775407843181,-500.0,0.00013698,2]
[419835690,1775407843191,-500.0,0.00013698,2]
[419835691,1775407843201,-500.0,0.00013698,2]
[419835692,1775407843211,-500.0,0.00013698,2]
[419835693,1775407843221,-500.0,0.00013698,2]
[419835694,1775407843230,-500.0,0.00013698,2]
[419835695,1775407843240,-500.0,0.00013698,2]
[419835696,1775407843249,-150.0,0.00013699,2]
[419835697,1775407843259,-150.0,0.00013699,2]
[419835698,1775407843268,-150.0,0.00013699,2]
[419835699,1775407843278,-150.0,0.00013699,2]
[419835700,1775407843288,-150.0,0.00013699,2]
[419835701,1775407843297,-150.0,0.00013699,2]
[419835702,1775407843307,-166.66,0.00013699,2]
[419835703,1775407843317,-802.66,0.00013699,2]
[419835704,1775407843326,-342.3,0.00013699,2]
[419835705,1775407843336,-285.25,0.00013699,2]
[419835706,1775407843345,-237.71,0.00013699,2]
[419835707,1775407843354,-198.09,0.00013699,2]
[419835708,1775407843363,-165.08,0.00013699,2]
[419835709,1775407843373,-825.41,0.00013699,2]
[419835710,1775407843382,-500.0,0.00013699,2]
[419835711,1775407843392,-180.00096908,0.00013699,2]
[419835712,1775407843401,-500.76237275,0.00013699,2]
[419835713,1775407843411,-500.0,0.00013699,2]
[419835714,1775407843420,-500.0,0.00013699,2]
[419835715,1775407843429,-500.0,0.00013699,2]
[419835716,1775407843439,-500.0,0.00013699,2]
[419835717,1775407843449,-500.0,0.00013699,2]
[419835718,1775407843458,-500.0,0.00013699,2]
[419835719,1775407843467,-500.0,0.00013699,2]
[419835720,1775407843476,-500.0,0.00013699,2]
[419835721,1775407843486,-500.0,0.00013699,2]
[419835722,1775407843496,-500.0,0.00013699,2]
[419835723,1775407843505,-500.0,0.00013699,2]
[419835724,1775407843515,-500.0,0.00013699,2]
[419835725,1775407843524,-210.98153295,0.00013699,2]
[419835726,1775407843534,-168.69935806,0.00013699,2]
[419835727,1775407843543,-500.0,0.00013699,2]
[419835728,1775407843553,-500.0,0.00013699,2]
[419835729,1775407843562,-500.0,0.00013699,2]
[419835730,1775407843571,-500.0,0.00013699,2]
[419835731,1775407843581,-178.25,0.00013699,2]
[419835732,1775407843590,-1123.827409,0.00013794,2]
[419835733,1775407843600,-155.19654635,0.00013804,2]
[419835734,1775407843609,-166.66,0.00013836,2]
[419835735,1775407843619,-200.0,0.00013836,2]
[419835736,1775407843628,-4609.0,0.00013889,2]
[419835737,1775407843637,-1152.0,0.00013889,2]
[419835738,1775407843646,-7015.56153483,0.000139,2]
[419835739,1775407843656,-7794.24996149,0.000139,2]
[419835741,1775407843665,-500.0,0.0001395,2]
[419835742,1775407843675,-500.0,0.0001395,2]
[419835743,1775407843684,-966.9,0.00013972,2]
[419835744,1775407843694,-150.0,0.00013973,2]
[419835745,1775407843703,-150.0,0.00013973,2]
[419835746,1775407843712,-150.0,0.00013973,2]
[419835747,1775407843722,-150.0,0.00013973,2]
[419835748,1775407843732,-150.0,0.00013973,2]
[419835749,1775407843742,-150.0,0.00013973,2]
[419835750,1775407843752,-150.0,0.00013973,2]
[419835751,1775407843761,-166.66,0.00013973,2]
[419835752,1775407843771,-502.58762782,0.00013973,2]
[419835753,1775407843780,-500.0,0.00013973,2]
[419835754,1775407843790,-500.0,0.00013973,2]
[419835755,1775407843799,-11422.25541393,0.00014006,2]
[419835756,1775407843810,-1252.0,0.00014034,2]
[419835757,1775407843820,-31782.0,0.00014047,2]
[419835758,1775407843829,-399.1,0.000141,2]
[419835759,1775407843838,-214.6876,0.000141,2]
[419835760,1775407843848,-1048.32,0.000141,2]
[419835762,1775407843857,-1110.92,0.000141,2]
[419835764,1775407843867,-2076.0,0.000141,2]
[419835766,1775407843877,-1992.83,0.000141,2]
[419835768,1775407843887,-166.66,0.0001411,2]
[419835770,1775407843897,-4293.65708406,0.00014186,2]
[419835772,1775407843907,-504.0,0.00014208,2]
[419835773,1775407843916,-500.0,0.00014221,2]
[419835774,1775407843926,-500.0,0.00014221,2]
[419835775,1775407843936,-471.62275228,0.00014221,2]
[419835776,1775407843945,-1000.0,0.00014221,2]
[419835777,1775407843954,-1000.0,0.00014221,2]
[419835778,1775407843964,-966.9,0.00014246,2]
[419835779,1775407843973,-150.0,0.00014247,2]
[419835780,1775407843982,-150.0,0.00014247,2]
[419835781,1775407843992,-150.0,0.00014247,2]
[419835782,1775407844001,-166.66,0.00014247,2]
[419835783,1775407844010,-150.0,0.00014247,2]
[419835784,1775407844020,-150.0,0.00014247,2]
[419835785,1775407844029,-150.0,0.00014247,2]
[419835786,1775407844039,-1000.0,0.00014247,2]
[419835787,1775407844049,-1000.0,0.00014247,2]
[419835788,1775407844059,-1000.0,0.00014247,2]
[419835789,1775407844068,-1000.0,0.00014247,2]
[419835790,1775407844077,-1000.0,0.00014247,2]
[419835791,1775407844086,-1000.0,0.00014247,2]
[419835792,1775407844096,-1000.0,0.00014247,2]
[419835793,1775407844105,-1000.0,0.00014247,2]
[419835794,1775407844115,-1000.0,0.00014247,2]
[419835795,1775407844124,-1000.0,0.00014247,2]
[419835796,1775407844133,-627.70930647,0.00014247,2]
[419835797,1775407844143,-861.43877969,0.00014247,2]
[419835798,1775407844152,-308.03873246,0.00014247,2]
[419835799,1775407844161,-1000.0,0.00014247,2]
[419835800,1775407844170,-1000.0,0.00014247,2]
[419835801,1775407844179,-743.80429884,0.00014247,2]
[419835802,1775407844188,-1000.0,0.00014247,2]
[419835803,1775407844197,-518.71,0.00014257,2]
[419835804,1775407844206,-166.66,0.00014384,2]
[419835805,1775407844215,-200.0,0.00014384,2]
[419835806,1775407844225,-198.63,0.00014399,2]
[419835807,1775407844234,-150.0,0.000144,2]
[419835808,1775407844243,-150.0,0.000144,2]
[419835809,1775407844252,-150.0,0.000144,2]
[419835810,1775407844262,-150.14541725,0.000144,2]
[419835811,1775407844271,-150.17540857,0.000144,2]
[419835812,1775407844280,-150.0,0.000144,2]
[419835813,1775407844302,-150.0,0.000144,2]
[419835814,1775407844321,-150.0,0.000144,2]
[419835815,1775407844339,-151.01430456,0.000144,2]
[419835816,1775407844357,-150.60277618,0.000144,2]
[419835817,1775407844378,-150.0,0.000144,2]
[419835818,1775407844396,-287.38140471,0.000144,2]
[419835819,1775407844410,-150.0,0.000144,2]
[419835820,1775407844431,-150.0,0.000144,2]
[419835821,1775407844450,-569.46,0.00014427,2]
[419835822,1775407844467,-500.0,0.00014427,2]
[419835823,1775407844485,-513.8,0.00014427,2]
[419835824,1775407844502,-500.0,0.00014427,2]
[419835825,1775407844522,-1353.7,0.00014427,2]
[419835826,1775407844538,-571.23,0.00014427,2]
[419835827,1775407844553,-500.0,0.00014427,2]
[419835828,1775407844568,-500.0,0.00014427,2]
[419835829,1775407844583,-500.0,0.00014427,2]
[419835830,1775407844599,-481.06713155,0.00014427,2]
[419835831,1775407844614,-500.0,0.00014427,2]
[419835832,1775407844642,-1000.0,0.00014434,2]
[419835833,1775407844658,-165.53,0.00014476,2]
[419835834,1775407844673,-665.0,0.00014491,4]
[419835835,1775407844689,-1123.827409,0.00014496,2]
[419835836,1775407844705,-1000.0,0.00014498,2]
[419835837,1775407844721,-1000.0,0.00014498,2]
[419835838,1775407844737,-522.0,0.00014513,4]
[419835839,1775407844752,-966.9,0.0001452,2]
[419835840,1775407844768,-450.63286364,0.00014521,2]
[419835841,1775407844784,-1000.0,0.00014521,2]
[419835842,1775407844799,-150.0,0.00014545,2]
[419835843,1775407844815,-7015.56153483,0.00014567,2]
[419835844,1775407844830,-7794.24996149,0.00014567,2]
[419835845,1775407844848,-150.0,0.000146,2]
[419835846,1775407844864,-150.0,0.000146,2]
[419835847,1775407844879,-275.87,0.0001464,2]
[419835848,1775407844895,-150.0,0.00014667,2]
[419835849,1775407844911,-150.0,0.00014667,2]
[419835850,1775407844928,-150.0,0.00014667,2]
[419835851,1775407844943,-150.0,0.00014691,2]
[419835852,1775407844958,-284.87194645,0.00014728,2]
[419835853,1775407844975,-478.15,0.00014732,2]
[419835854,1775407844992,-308.24,0.00014738,2]
[419835855,1775407845008,-1000.0,0.00014743,2]
[419835856,1775407845024,-1512.47134075,0.00014768,2]
[419835857,1775407845040,-1377.452931,0.00014768,2]
[419835858,1775407845056,-966.9,0.00014794,2]
[419835859,1775407845072,-150.0,0.00014795,2]
[419835860,1775407845088,-1500.0,0.00014795,2]
[419835861,1775407845103,-1500.0,0.00014795,2]
[419835862,1775407845120,-1500.0,0.00014795,2]
[419835863,1775407845135,-1500.0,0.00014795,2]
[419835864,1775407845153,-1500.0,0.00014795,2]
[419835865,1775407845169,-1500.0,0.00014795,2]
[419835866,1775407845185,-1500.0,0.00014795,2]
[419835867,1775407845202,-1500.0,0.00014795,2]
[419835868,1775407845217,-1500.0,0.00014795,2]
[419835869,1775407845233,-953.31303788,0.00014795,2]
[419835870,1775407845250,-418.3764967,0.00014795,2]
[419835871,1775407845265,-1500.0,0.00014795,2]
[419835872,1775407845282,-1500.0,0.00014795,2]